Workbook

Sheet HOUSE2
B1: 房屋貸款 -本息平均攤還法
B2: 本息平均攤還法是將本息一起平均在貸款期間償還，每期償還的本利和都一樣， 比較方便理財，為最常用之貸款償還辦法。
A3: 房屋總坪數 | B3: 32 | C3: 貸款比例 | D3: 70% | E3: 貸款日(西元) | F3: 1996年 | G3: 12月 | O3: 預計每隔 | P3: 1 | Q3: 月(期), 就先償還貸款本金: | S3: 0 | T3: 元
A4: 每坪單價 | B4: $320,000元 | C4: 年利率 | D4: 9.25% | E4: 貸款年限 | F4: 20年
A5: 其他成本(如停車位) | B5: $1,500,000元
A7: 總價 : | B7: =B3*B4+B5 -> $11,740,000元 | C7: 自備款 : | D7: =B7*(1-D3) -> $3,522,000元 | E7: 每個所期償的 本金加上利息 | F7: =PMT(D4/12,F4*12,-D8) -> $75,266元
C8: 貸款金額: | D8: =B7*D3 -> $8,218,000元
A9: ="根據計算您將於第 "&FIXED(M9,0)+1&"期，也就是西元"&FIXED(Q9,0)&"年"&FIXED(R9,0)&"月還清所有貸款" -> 根據計算您將於第 240期，也就是西元2,016年11月還清所有貸款 | F9: =P9 -> 2016-11-01 | M9: =VLOOKUP("A",$N$11:$R$859,3) -> 239 | N9: =VLOOKUP("A",$N$11:$R$859,4) -> 2016 | O9: =VLOOKUP("A",$N$11:$R$859,5) -> 10 | P9: =DATEVALUE(N9&"/"&O9&"/"&1)+31 -> 2016-11-01 | Q9: =YEAR(P9) -> 2016 | R9: =MONTH(P9) -> 11
A10: 期數 | B10: 日期 | C10: 尚未償還 貸款金額 | D10: 償付本金 | E10: 償付利息 | F10: 累計 償還本金 | G10: 累計 償還利息 | Q10: 年 | R10: 月
A11: 1 | B11: =IF(A11="","",IF(R11="","錯誤的日期",DATE(Q11,R11,1))) -> 1996-12-01 | C11: =IF(A11="","",D8-D11) -> 8206081 | D11: =IF(OR(A11="",C10=""),"",IF(C10<$F$7,C10,$F$7-E11+IF(MOD(A11,$P$3)=0,$S$3,0))) -> 11919 | E11: =IF(A11="","",D8*D4/12) -> 63347 | F11: =IF(A11="","",D11) -> 11919 | G11: =IF(A11="","",E11) -> 63347 | N11: =IF(O11<0,"A",1) -> 1 | O11: =表格1[[#This Row],[尚未償還 貸款金額]]-$F$7 -> $8,130,815元 | P11: 1 | Q11: =F3 -> 1996 | R11: =IF(AND(G3>=1,G3<=12),G3,"") -> 12
A12: =IF(AND(A11<$F$4*12,A11<>""),A11+1,"") -> 2 | B12: 1997-01-01 | C12: =IF(A12="","",IF(C11-D12<=0,"",C11-D12)) -> 8194070 | D12: 12011 | E12: =IF(OR(A12="",C11=""),"",C11*$D$4/12) -> 63255 | F12: =IF(OR(A12="",C11=""),"",F11+D12) -> 23930 | G12: =IF(OR(A12="",C11=""),"",G11+E12) -> 126602 | N12: =IF(O12<0,"A",1) -> 1 | O12: =表格1[[#This Row],[尚未償還 貸款金額]]-$F$7 -> $8,118,804元 | P12: 2 | Q12: =IF(R11=12,Q11+1,Q11) -> 1997 | R12: =IF(R11=12,1,R11+1) -> 1
A13: 3 | B13: 1997-02-01 | C13: =IF(A13="","",IF((C12-D13)<=0,"",C12-D13)) -> 8181967 | D13: 12103 | E13: 63163 | F13: 36033 | G13: 189765 | N13: 1 | O13: =表格1[[#This Row],[尚未償還 貸款金額]]-$F$7 -> $8,106,701元 | P13: 3 | Q13: 1997 | R13: 2
A14: 4 | B14: 1997-03-01 | C14: 8169771 | D14: 12197 | E14: 63069 | F14: 48229 | G14: 252834 | N14: 1 | O14: =表格1[[#This Row],[尚未償還 貸款金額]]-$F$7 -> $8,094,505元 | P14: 4 | Q14: 1997 | R14: 3
A15: 5 | B15: 1997-04-01 | C15: 8157480 | D15: 12291 | E15: 62975 | F15: 60520 | G15: 315810 | N15: 1 | O15: =表格1[[#This Row],[尚未償還 貸款金額]]-$F$7 -> $8,082,214元 | P15: 5 | Q15: 1997 | R15: 4
A16: 6 | B16: 1997-05-01 | C16: 8145095 | D16: 12385 | E16: 62881 | F16: 72905 | G16: 378690 | N16: 1 | O16: =表格1[[#This Row],[尚未償還 貸款金額]]-$F$7 -> $8,069,829元 | P16: 6 | Q16: 1997 | R16: 5
A17: 7 | B17: 1997-06-01 | C17: 8132614 | D17: 12481 | E17: 62785 | F17: 85386 | G17: 441475 | N17: 1 | O17: =表格1[[#This Row],[尚未償還 貸款金額]]-$F$7 -> $8,057,348元 | P17: 7 | Q17: 1997 | R17: 6
A18: 8 | B18: 1997-07-01 | C18: 8120037 | D18: 12577 | E18: 62689 | F18: 97963 | G18: 504164 | N18: 1 | O18: =表格1[[#This Row],[尚未償還 貸款金額]]-$F$7 -> $8,044,771元 | P18: 8 | Q18: 1997 | R18: 7
A19: 9 | B19: 1997-08-01 | C19: 8107363 | D19: 12674 | E19: 62592 | F19: 110637 | G19: 566756 | N19: 1 | O19: =表格1[[#This Row],[尚未償還 貸款金額]]-$F$7 -> $8,032,097元 | P19: 9 | Q19: 1997 | R19: 8
A20: 10 | B20: 1997-09-01 | C20: 8094591 | D20: 12772 | E20: 62494 | F20: 123409 | G20: 629250 | N20: 1 | O20: =表格1[[#This Row],[尚未償還 貸款金額]]-$F$7 -> $8,019,325元 | P20: 10 | Q20: 1997 | R20: 9
A21: 11 | B21: 1997-10-01 | C21: 8081721 | D21: 12870 | E21: 62396 | F21: 136279 | G21: 691646 | N21: 1 | O21: =表格1[[#This Row],[尚未償還 貸款金額]]-$F$7 -> $8,006,455元 | P21: 11 | Q21: 1997 | R21: 10
A22: 12 | B22: 1997-11-01 | C22: 8068752 | D22: 12969 | E22: 62297 | F22: 149248 | G22: 753943 | N22: 1 | O22: =表格1[[#This Row],[尚未償還 貸款金額]]-$F$7 -> $7,993,486元 | P22: 12 | Q22: 1997 | R22: 11
A23: 13 | B23: 1997-12-01 | C23: 8055682 | D23: 13069 | E23: 62197 | F23: 162318 | G23: 816139 | N23: 1 | O23: =表格1[[#This Row],[尚未償還 貸款金額]]-$F$7 -> $7,980,416元 | P23: 13 | Q23: 1997 | R23: 12
A24: 14 | B24: 1998-01-01 | C24: 8042512 | D24: 13170 | E24: 62096 | F24: 175488 | G24: 878235 | N24: 1 | O24: =表格1[[#This Row],[尚未償還 貸款金額]]-$F$7 -> $7,967,246元 | P24: 14 | Q24: 1998 | R24: 1
A25: 15 | B25: 1998-02-01 | C25: 8029241 | D25: 13272 | E25: 61994 | F25: 188759 | G25: 940230 | N25: 1 | O25: =表格1[[#This Row],[尚未償還 貸款金額]]-$F$7 -> $7,953,975元 | P25: 15 | Q25: 1998 | R25: 2
A26: 16 | B26: 1998-03-01 | C26: 8015867 | D26: 13374 | E26: 61892 | F26: 202133 | G26: 1002122 | N26: 1 | O26: =表格1[[#This Row],[尚未償還 貸款金額]]-$F$7 -> $7,940,601元 | P26: 16 | Q26: 1998 | R26: 3
A27: 17 | B27: 1998-04-01 | C27: 8002390 | D27: 13477 | E27: 61789 | F27: 215610 | G27: 1063911 | N27: 1 | O27: =表格1[[#This Row],[尚未償還 貸款金額]]-$F$7 -> $7,927,124元 | P27: 17 | Q27: 1998 | R27: 4
A28: 18 | B28: 1998-05-01 | C28: 7988809 | D28: 13581 | E28: 61685 | F28: 229191 | G28: 1125596 | N28: 1 | O28: =表格1[[#This Row],[尚未償還 貸款金額]]-$F$7 -> $7,913,543元 | P28: 18 | Q28: 1998 | R28: 5
A29: 19 | B29: 1998-06-01 | C29: 7975123 | D29: 13686 | E29: 61580 | F29: 242877 | G29: 1187176 | N29: 1 | O29: =表格1[[#This Row],[尚未償還 貸款金額]]-$F$7 -> $7,899,857元 | P29: 19 | Q29: 1998 | R29: 6
A30: 20 | B30: 1998-07-01 | C30: 7961332 | D30: 13791 | E30: 61475 | F30: 256668 | G30: 1248651 | N30: 1 | O30: =表格1[[#This Row],[尚未償還 貸款金額]]-$F$7 -> $7,886,066元 | P30: 20 | Q30: 1998 | R30: 7
A31: 21 | B31: 1998-08-01 | C31: 7947435 | D31: 13897 | E31: 61369 | F31: 270565 | G31: 1310020 | N31: 1 | O31: =表格1[[#This Row],[尚未償還 貸款金額]]-$F$7 -> $7,872,169元 | P31: 21 | Q31: 1998 | R31: 8
A32: 22 | B32: 1998-09-01 | C32: 7933431 | D32: 14004 | E32: 61261 | F32: 284569 | G32: 1371281 | N32: 1 | O32: =表格1[[#This Row],[尚未償還 貸款金額]]-$F$7 -> $7,858,165元 | P32: 22 | Q32: 1998 | R32: 9
A33: 23 | B33: 1998-10-01 | C33: 7919318 | D33: 14112 | E33: 61154 | F33: 298682 | G33: 1432435 | N33: 1 | O33: =表格1[[#This Row],[尚未償還 貸款金額]]-$F$7 -> $7,844,052元 | P33: 23 | Q33: 1998 | R33: 10
A34: 24 | B34: 1998-11-01 | C34: 7905097 | D34: 14221 | E34: 61045 | F34: 312903 | G34: 1493479 | N34: 1 | O34: =表格1[[#This Row],[尚未償還 貸款金額]]-$F$7 -> $7,829,831元 | P34: 24 | Q34: 1998 | R34: 11
A35: 25 | B35: 1998-12-01 | C35: 7890766 | D35: 14331 | E35: 60935 | F35: 327234 | G35: 1554415 | N35: 1 | O35: =表格1[[#This Row],[尚未償還 貸款金額]]-$F$7 -> $7,815,500元 | P35: 25 | Q35: 1998 | R35: 12
A36: 26 | B36: 1999-01-01 | C36: 7876325 | D36: 14441 | E36: 60825 | F36: 341675 | G36: 1615239 | N36: 1 | O36: =表格1[[#This Row],[尚未償還 貸款金額]]-$F$7 -> $7,801,059元 | P36: 26 | Q36: 1999 | R36: 1
A37: 27 | B37: 1999-02-01 | C37: 7861772 | D37: 14553 | E37: 60713 | F37: 356228 | G37: 1675953 | N37: 1 | O37: =表格1[[#This Row],[尚未償還 貸款金額]]-$F$7 -> $7,786,506元 | P37: 27 | Q37: 1999 | R37: 2
A38: 28 | B38: 1999-03-01 | C38: 7847107 | D38: 14665 | E38: 60601 | F38: 370893 | G38: 1736554 | N38: 1 | O38: =表格1[[#This Row],[尚未償還 貸款金額]]-$F$7 -> $7,771,842元 | P38: 28 | Q38: 1999 | R38: 3
A39: 29 | B39: 1999-04-01 | C39: 7832330 | D39: 14778 | E39: 60488 | F39: 385670 | G39: 1797042 | N39: 1 | O39: =表格1[[#This Row],[尚未償還 貸款金額]]-$F$7 -> $7,757,064元 | P39: 29 | Q39: 1999 | R39: 4
A40: 30 | B40: 1999-05-01 | C40: 7817438 | D40: 14892 | E40: 60374 | F40: 400562 | G40: 1857416 | N40: 1 | O40: =表格1[[#This Row],[尚未償還 貸款金額]]-$F$7 -> $7,742,172元 | P40: 30 | Q40: 1999 | R40: 5
A41: 31 | B41: 1999-06-01 | C41: 7802431 | D41: 15007 | E41: 60259 | F41: 415569 | G41: 1917675 | N41: 1 | O41: =表格1[[#This Row],[尚未償還 貸款金額]]-$F$7 -> $7,727,165元 | P41: 31 | Q41: 1999 | R41: 6
A42: 32 | B42: 1999-07-01 | C42: 7787309 | D42: 15122 | E42: 60144 | F42: 430691 | G42: 1977819 | N42: 1 | O42: =表格1[[#This Row],[尚未償還 貸款金額]]-$F$7 -> $7,712,043元 | P42: 32 | Q42: 1999 | R42: 7
A43: 33 | B43: 1999-08-01 | C43: 7772070 | D43: 15239 | E43: 60027 | F43: 445930 | G43: 2037846 | N43: 1 | O43: =表格1[[#This Row],[尚未償還 貸款金額]]-$F$7 -> $7,696,805元 | P43: 33 | Q43: 1999 | R43: 8
A44: 34 | B44: 1999-09-01 | C44: 7756714 | D44: 15356 | E44: 59910 | F44: 461286 | G44: 2097756 | N44: 1 | O44: =表格1[[#This Row],[尚未償還 貸款金額]]-$F$7 -> $7,681,448元 | P44: 34 | Q44: 1999 | R44: 9
A45: 35 | B45: 1999-10-01 | C45: 7741240 | D45: 15475 | E45: 59791 | F45: 476760 | G45: 2157547 | N45: 1 | O45: =表格1[[#This Row],[尚未償還 貸款金額]]-$F$7 -> $7,665,974元 | P45: 35 | Q45: 1999 | R45: 10
A46: 36 | B46: 1999-11-01 | C46: 7725646 | D46: 15594 | E46: 59672 | F46: 492354 | G46: 2217219 | N46: 1 | O46: =表格1[[#This Row],[尚未償還 貸款金額]]-$F$7 -> $7,650,380元 | P46: 36 | Q46: 1999 | R46: 11
A47: 37 | B47: 1999-12-01 | C47: 7709932 | D47: 15714 | E47: 59552 | F47: 508068 | G47: 2276771 | N47: 1 | O47: =表格1[[#This Row],[尚未償還 貸款金額]]-$F$7 -> $7,634,666元 | P47: 37 | Q47: 1999 | R47: 12
A48: 38 | B48: 2000-01-01 | C48: 7694096 | D48: 15835 | E48: 59431 | F48: 523904 | G48: 2336202 | N48: 1 | O48: =表格1[[#This Row],[尚未償還 貸款金額]]-$F$7 -> $7,618,831元 | P48: 38 | Q48: 2000 | R48: 1
A49: 39 | B49: 2000-02-01 | C49: 7678139 | D49: 15957 | E49: 59309 | F49: 539861 | G49: 2395511 | N49: 1 | O49: =表格1[[#This Row],[尚未償還 貸款金額]]-$F$7 -> $7,602,873元 | P49: 39 | Q49: 2000 | R49: 2
A50: 40 | B50: 2000-03-01 | C50: 7662059 | D50: 16080 | E50: 59186 | F50: 555941 | G50: 2454696 | N50: 1 | O50: =表格1[[#This Row],[尚未償還 貸款金額]]-$F$7 -> $7,586,793元 | P50: 40 | Q50: 2000 | R50: 3
A51: 41 | B51: 2000-04-01 | C51: 7645855 | D51: 16204 | E51: 59062 | F51: 572145 | G51: 2513758 | N51: 1 | O51: =表格1[[#This Row],[尚未償還 貸款金額]]-$F$7 -> $7,570,589元 | P51: 41 | Q51: 2000 | R51: 4
A52: 42 | B52: 2000-05-01 | C52: 7629526 | D52: 16329 | E52: 58937 | F52: 588474 | G52: 2572695 | N52: 1 | O52: =表格1[[#This Row],[尚未償還 貸款金額]]-$F$7 -> $7,554,260元 | P52: 42 | Q52: 2000 | R52: 5
A53: 43 | B53: 2000-06-01 | C53: 7613070 | D53: 16455 | E53: 58811 | F53: 604930 | G53: 2631506 | N53: 1 | O53: =表格1[[#This Row],[尚未償還 貸款金額]]-$F$7 -> $7,537,805元 | P53: 43 | Q53: 2000 | R53: 6
A54: 44 | B54: 2000-07-01 | C54: 7596489 | D54: 16582 | E54: 58684 | F54: 621511 | G54: 2690190 | N54: 1 | O54: =表格1[[#This Row],[尚未償還 貸款金額]]-$F$7 -> $7,521,223元 | P54: 44 | Q54: 2000 | R54: 7
A55: 45 | B55: 2000-08-01 | C55: 7579779 | D55: 16710 | E55: 58556 | F55: 638221 | G55: 2748746 | N55: 1 | O55: =表格1[[#This Row],[尚未償還 貸款金額]]-$F$7 -> $7,504,513元 | P55: 45 | Q55: 2000 | R55: 8
A56: 46 | B56: 2000-09-01 | C56: 7562941 | D56: 16838 | E56: 58427 | F56: 655059 | G56: 2807174 | N56: 1 | O56: =表格1[[#This Row],[尚未償還 貸款金額]]-$F$7 -> $7,487,675元 | P56: 46 | Q56: 2000 | R56: 9
A57: 47 | B57: 2000-10-01 | C57: 7545972 | D57: 16968 | E57: 58298 | F57: 672028 | G57: 2865471 | N57: 1 | O57: =表格1[[#This Row],[尚未償還 貸款金額]]-$F$7 -> $7,470,706元 | P57: 47 | Q57: 2000 | R57: 10
A58: 48 | B58: 2000-11-01 | C58: 7528873 | D58: 17099 | E58: 58167 | F58: 689127 | G58: 2923638 | N58: 1 | O58: =表格1[[#This Row],[尚未償還 貸款金額]]-$F$7 -> $7,453,607元 | P58: 48 | Q58: 2000 | R58: 11
A59: 49 | B59: 2000-12-01 | C59: 7511642 | D59: 17231 | E59: 58035 | F59: 706358 | G59: 2981673 | N59: 1 | O59: =表格1[[#This Row],[尚未償還 貸款金額]]-$F$7 -> $7,436,376元 | P59: 49 | Q59: 2000 | R59: 12
A60: 50 | B60: 2001-01-01 | C60: 7494279 | D60: 17364 | E60: 57902 | F60: 723721 | G60: 3039575 | N60: 1 | O60: =表格1[[#This Row],[尚未償還 貸款金額]]-$F$7 -> $7,419,013元 | P60: 50 | Q60: 2001 | R60: 1
A61: 51 | B61: 2001-02-01 | C61: 7476781 | D61: 17498 | E61: 57768 | F61: 741219 | G61: 3097344 | N61: 1 | O61: =表格1[[#This Row],[尚未償還 貸款金額]]-$F$7 -> $7,401,515元 | P61: 51 | Q61: 2001 | R61: 2
A62: 52 | B62: 2001-03-01 | C62: 7459149 | D62: 17632 | E62: 57634 | F62: 758851 | G62: 3154977 | N62: 1 | O62: =表格1[[#This Row],[尚未償還 貸款金額]]-$F$7 -> $7,383,883元 | P62: 52 | Q62: 2001 | R62: 3
A63: 53 | B63: 2001-04-01 | C63: 7441380 | D63: 17768 | E63: 57498 | F63: 776620 | G63: 3212475 | N63: 1 | O63: =表格1[[#This Row],[尚未償還 貸款金額]]-$F$7 -> $7,366,114元 | P63: 53 | Q63: 2001 | R63: 4
A64: 54 | B64: 2001-05-01 | C64: 7423475 | D64: 17905 | E64: 57361 | F64: 794525 | G64: 3269836 | N64: 1 | O64: =表格1[[#This Row],[尚未償還 貸款金額]]-$F$7 -> $7,348,209元 | P64: 54 | Q64: 2001 | R64: 5
A65: 55 | B65: 2001-06-01 | C65: 7405432 | D65: 18043 | E65: 57223 | F65: 812568 | G65: 3327058 | N65: 1 | O65: =表格1[[#This Row],[尚未償還 貸款金額]]-$F$7 -> $7,330,166元 | P65: 55 | Q65: 2001 | R65: 6
A66: 56 | B66: 2001-07-01 | C66: 7387249 | D66: 18182 | E66: 57084 | F66: 830751 | G66: 3384142 | N66: 1 | O66: =表格1[[#This Row],[尚未償還 貸款金額]]-$F$7 -> $7,311,983元 | P66: 56 | Q66: 2001 | R66: 7
A67: 57 | B67: 2001-08-01 | C67: 7368927 | D67: 18323 | E67: 56943 | F67: 849073 | G67: 3441085 | N67: 1 | O67: =表格1[[#This Row],[尚未償還 貸款金額]]-$F$7 -> $7,293,661元 | P67: 57 | Q67: 2001 | R67: 8
A68: 58 | B68: 2001-09-01 | C68: 7350463 | D68: 18464 | E68: 56802 | F68: 867537 | G68: 3497887 | N68: 1 | O68: =表格1[[#This Row],[尚未償還 貸款金額]]-$F$7 -> $7,275,197元 | P68: 58 | Q68: 2001 | R68: 9
A69: 59 | B69: 2001-10-01 | C69: 7331857 | D69: 18606 | E69: 56660 | F69: 886143 | G69: 3554547 | N69: 1 | O69: =表格1[[#This Row],[尚未償還 貸款金額]]-$F$7 -> $7,256,591元 | P69: 59 | Q69: 2001 | R69: 10
A70: 60 | B70: 2001-11-01 | C70: 7313107 | D70: 18750 | E70: 56516 | F70: 904893 | G70: 3611063 | N70: 1 | O70: =表格1[[#This Row],[尚未償還 貸款金額]]-$F$7 -> $7,237,841元 | P70: 60 | Q70: 2001 | R70: 11
A71: 61 | B71: 2001-12-01 | C71: 7294213 | D71: 18894 | E71: 56372 | F71: 923787 | G71: 3667435 | N71: 1 | O71: =表格1[[#This Row],[尚未償還 貸款金額]]-$F$7 -> $7,218,947元 | P71: 61 | Q71: 2001 | R71: 12
A72: 62 | B72: 2002-01-01 | C72: 7275174 | D72: 19040 | E72: 56226 | F72: 942826 | G72: 3723662 | N72: 1 | O72: =表格1[[#This Row],[尚未償還 貸款金額]]-$F$7 -> $7,199,908元 | P72: 62 | Q72: 2002 | R72: 1
A73: 63 | B73: 2002-02-01 | C73: 7255987 | D73: 19186 | E73: 56079 | F73: 962013 | G73: 3779741 | N73: 1 | O73: =表格1[[#This Row],[尚未償還 貸款金額]]-$F$7 -> $7,180,721元 | P73: 63 | Q73: 2002 | R73: 2
A74: 64 | B74: 2002-03-01 | C74: 7236653 | D74: 19334 | E74: 55932 | F74: 981347 | G74: 3835673 | N74: 1 | O74: =表格1[[#This Row],[尚未償還 貸款金額]]-$F$7 -> $7,161,387元 | P74: 64 | Q74: 2002 | R74: 3
A75: 65 | B75: =IF(A75="","",IF(R75="","錯誤的日期",DATE(Q75,R75,1))) -> 2002-04-01 | C75: 7217169 | D75: =IF(OR(A75="",C74=""),"",IF(C74<$F$7,C74,$F$7-E75+IF(MOD(A75,$P$3)=0,$S$3,0))) -> 19483 | E75: 55783 | F75: 1000831 | G75: 3891455 | N75: 1 | O75: =表格1[[#This Row],[尚未償還 貸款金額]]-$F$7 -> $7,141,903元 | P75: 65 | Q75: 2002 | R75: 4
A76: =IF(AND(A75<$F$4*12,A75<>""),A75+1,"") -> 66 | B76: 2002-05-01 | C76: 7197536 | D76: 19634 | E76: =IF(OR(A76="",C75=""),"",C75*$D$4/12) -> 55632 | F76: =IF(OR(A76="",C75=""),"",F75+D76) -> 1020464 | G76: =IF(OR(A76="",C75=""),"",G75+E76) -> 3947087 | N76: =IF(O76<0,"A",1) -> 1 | O76: =表格1[[#This Row],[尚未償還 貸款金額]]-$F$7 -> $7,122,270元 | P76: 66 | Q76: =IF(R75=12,Q75+1,Q75) -> 2002 | R76: =IF(R75=12,1,R75+1) -> 5
A77: 67 | B77: 2002-06-01 | C77: =IF(A77="","",IF((C76-D77)<=0,"",C76-D77)) -> 7177751 | D77: 19785 | E77: 55481 | F77: 1040249 | G77: 4002568 | N77: 1 | O77: =表格1[[#This Row],[尚未償還 貸款金額]]-$F$7 -> $7,102,485元 | P77: 67 | Q77: 2002 | R77: 6
A78: 68 | B78: 2002-07-01 | C78: 7157813 | D78: 19937 | E78: 55328 | F78: 1060187 | G78: 4057897 | N78: 1 | O78: =表格1[[#This Row],[尚未償還 貸款金額]]-$F$7 -> $7,082,547元 | P78: 68 | Q78: 2002 | R78: 7
A79: 69 | B79: 2002-08-01 | C79: 7137722 | D79: 20091 | E79: 55175 | F79: 1080278 | G79: 4113072 | N79: 1 | O79: =表格1[[#This Row],[尚未償還 貸款金額]]-$F$7 -> $7,062,456元 | P79: 69 | Q79: 2002 | R79: 8
A80: 70 | B80: 2002-09-01 | C80: 7117476 | D80: 20246 | E80: 55020 | F80: 1100524 | G80: 4168092 | N80: 1 | O80: =表格1[[#This Row],[尚未償還 貸款金額]]-$F$7 -> $7,042,210元 | P80: 70 | Q80: 2002 | R80: 9
A81: 71 | B81: 2002-10-01 | C81: 7097074 | D81: 20402 | E81: 54864 | F81: 1120926 | G81: 4222956 | N81: 1 | O81: =表格1[[#This Row],[尚未償還 貸款金額]]-$F$7 -> $7,021,808元 | P81: 71 | Q81: 2002 | R81: 10
A82: 72 | B82: 2002-11-01 | C82: 7076515 | D82: 20559 | E82: 54707 | F82: 1141485 | G82: 4277662 | N82: 1 | O82: =表格1[[#This Row],[尚未償還 貸款金額]]-$F$7 -> $7,001,249元 | P82: 72 | Q82: 2002 | R82: 11
A83: 73 | B83: 2002-12-01 | C83: 7055797 | D83: 20718 | E83: 54548 | F83: 1162203 | G83: 4332210 | N83: 1 | O83: =表格1[[#This Row],[尚未償還 貸款金額]]-$F$7 -> $6,980,531元 | P83: 73 | Q83: 2002 | R83: 12
A84: 74 | B84: 2003-01-01 | C84: 7034920 | D84: 20878 | E84: 54388 | F84: 1183080 | G84: 4386599 | N84: 1 | O84: =表格1[[#This Row],[尚未償還 貸款金額]]-$F$7 -> $6,959,654元 | P84: 74 | Q84: 2003 | R84: 1
A85: 75 | B85: 2003-02-01 | C85: 7013881 | D85: 21038 | E85: 54228 | F85: 1204119 | G85: 4440826 | N85: 1 | O85: =表格1[[#This Row],[尚未償還 貸款金額]]-$F$7 -> $6,938,615元 | P85: 75 | Q85: 2003 | R85: 2
A86: 76 | B86: 2003-03-01 | C86: 6992680 | D86: 21201 | E86: 54065 | F86: 1225320 | G86: 4494892 | N86: 1 | O86: =表格1[[#This Row],[尚未償還 貸款金額]]-$F$7 -> $6,917,415元 | P86: 76 | Q86: 2003 | R86: 3
A87: 77 | B87: 2003-04-01 | C87: 6971316 | D87: 21364 | E87: 53902 | F87: 1246684 | G87: 4548794 | N87: 1 | O87: =表格1[[#This Row],[尚未償還 貸款金額]]-$F$7 -> $6,896,051元 | P87: 77 | Q87: 2003 | R87: 4
A88: 78 | B88: 2003-05-01 | C88: 6949788 | D88: 21529 | E88: 53737 | F88: 1268212 | G88: 4602531 | N88: 1 | O88: =表格1[[#This Row],[尚未償還 貸款金額]]-$F$7 -> $6,874,522元 | P88: 78 | Q88: 2003 | R88: 5
A89: 79 | B89: 2003-06-01 | C89: 6928093 | D89: 21695 | E89: 53571 | F89: 1289907 | G89: 4656102 | N89: 1 | O89: =表格1[[#This Row],[尚未償還 貸款金額]]-$F$7 -> $6,852,827元 | P89: 79 | Q89: 2003 | R89: 6
A90: 80 | B90: 2003-07-01 | C90: 6906231 | D90: 21862 | E90: 53404 | F90: 1311769 | G90: 4709506 | N90: 1 | O90: =表格1[[#This Row],[尚未償還 貸款金額]]-$F$7 -> $6,830,965元 | P90: 80 | Q90: 2003 | R90: 7
A91: 81 | B91: 2003-08-01 | C91: 6884201 | D91: 22030 | E91: 53236 | F91: 1333799 | G91: 4762742 | N91: 1 | O91: =表格1[[#This Row],[尚未償還 貸款金額]]-$F$7 -> $6,808,935元 | P91: 81 | Q91: 2003 | R91: 8
A92: 82 | B92: 2003-09-01 | C92: 6862001 | D92: 22200 | E92: 53066 | F92: 1355999 | G92: 4815807 | N92: 1 | O92: =表格1[[#This Row],[尚未償還 貸款金額]]-$F$7 -> $6,786,735元 | P92: 82 | Q92: 2003 | R92: 9
A93: 83 | B93: 2003-10-01 | C93: 6839629 | D93: 22371 | E93: 52895 | F93: 1378371 | G93: 4868702 | N93: 1 | O93: =表格1[[#This Row],[尚未償還 貸款金額]]-$F$7 -> $6,764,363元 | P93: 83 | Q93: 2003 | R93: 10
A94: 84 | B94: 2003-11-01 | C94: 6817085 | D94: 22544 | E94: 52722 | F94: 1400915 | G94: 4921424 | N94: 1 | O94: =表格1[[#This Row],[尚未償還 貸款金額]]-$F$7 -> $6,741,819元 | P94: 84 | Q94: 2003 | R94: 11
A95: 85 | B95: 2003-12-01 | C95: 6794368 | D95: 22718 | E95: 52548 | F95: 1423632 | G95: 4973972 | N95: 1 | O95: =表格1[[#This Row],[尚未償還 貸款金額]]-$F$7 -> $6,719,102元 | P95: 85 | Q95: 2003 | R95: 12
A96: 86 | B96: 2004-01-01 | C96: 6771475 | D96: 22893 | E96: 52373 | F96: 1446525 | G96: 5026346 | N96: 1 | O96: =表格1[[#This Row],[尚未償還 貸款金額]]-$F$7 -> $6,696,209元 | P96: 86 | Q96: 2004 | R96: 1
A97: 87 | B97: 2004-02-01 | C97: 6748406 | D97: 23069 | E97: 52197 | F97: 1469594 | G97: 5078542 | N97: 1 | O97: =表格1[[#This Row],[尚未償還 貸款金額]]-$F$7 -> $6,673,140元 | P97: 87 | Q97: 2004 | R97: 2
A98: 88 | B98: 2004-03-01 | C98: 6725159 | D98: 23247 | E98: 52019 | F98: 1492841 | G98: 5130561 | N98: 1 | O98: =表格1[[#This Row],[尚未償還 貸款金額]]-$F$7 -> $6,649,893元 | P98: 88 | Q98: 2004 | R98: 3
A99: 89 | B99: 2004-04-01 | C99: 6701733 | D99: 23426 | E99: 51840 | F99: 1516267 | G99: 5182401 | N99: 1 | O99: =表格1[[#This Row],[尚未償還 貸款金額]]-$F$7 -> $6,626,467元 | P99: 89 | Q99: 2004 | R99: 4
A100: 90 | B100: 2004-05-01 | C100: 6678126 | D100: 23607 | E100: 51659 | F100: 1539874 | G100: 5234060 | N100: 1 | O100: =表格1[[#This Row],[尚未償還 貸款金額]]-$F$7 -> $6,602,860元 | P100: 90 | Q100: 2004 | R100: 5
A101: 91 | B101: 2004-06-01 | C101: 6654337 | D101: 23789 | E101: 51477 | F101: 1563663 | G101: 5285538 | N101: 1 | O101: =表格1[[#This Row],[尚未償還 貸款金額]]-$F$7 -> $6,579,071元 | P101: 91 | Q101: 2004 | R101: 6
A102: 92 | B102: 2004-07-01 | C102: 6630365 | D102: 23972 | E102: 51294 | F102: 1587635 | G102: 5336831 | N102: 1 | O102: =表格1[[#This Row],[尚未償還 貸款金額]]-$F$7 -> $6,555,099元 | P102: 92 | Q102: 2004 | R102: 7
A103: 93 | B103: 2004-08-01 | C103: 6606208 | D103: 24157 | E103: 51109 | F103: 1611792 | G103: 5387941 | N103: 1 | O103: =表格1[[#This Row],[尚未償還 貸款金額]]-$F$7 -> $6,530,943元 | P103: 93 | Q103: 2004 | R103: 8
A104: 94 | B104: 2004-09-01 | C104: 6581865 | D104: 24343 | E104: 50923 | F104: 1636135 | G104: 5438863 | N104: 1 | O104: =表格1[[#This Row],[尚未償還 貸款金額]]-$F$7 -> $6,506,599元 | P104: 94 | Q104: 2004 | R104: 9
A105: 95 | B105: 2004-10-01 | C105: 6557335 | D105: 24531 | E105: 50735 | F105: 1660665 | G105: 5489599 | N105: 1 | O105: =表格1[[#This Row],[尚未償還 貸款金額]]-$F$7 -> $6,482,069元 | P105: 95 | Q105: 2004 | R105: 10
A106: 96 | B106: 2004-11-01 | C106: 6532615 | D106: 24720 | E106: 50546 | F106: 1685385 | G106: 5540145 | N106: 1 | O106: =表格1[[#This Row],[尚未償還 貸款金額]]-$F$7 -> $6,457,349元 | P106: 96 | Q106: 2004 | R106: 11
A107: 97 | B107: 2004-12-01 | C107: 6507704 | D107: 24910 | E107: 50356 | F107: 1710296 | G107: 5590500 | N107: 1 | O107: =表格1[[#This Row],[尚未償還 貸款金額]]-$F$7 -> $6,432,439元 | P107: 97 | Q107: 2004 | R107: 12
A108: 98 | B108: 2005-01-01 | C108: 6482602 | D108: 25102 | E108: 50164 | F108: 1735398 | G108: 5640664 | N108: 1 | O108: =表格1[[#This Row],[尚未償還 貸款金額]]-$F$7 -> $6,407,336元 | P108: 98 | Q108: 2005 | R108: 1
A109: 99 | B109: 2005-02-01 | C109: 6457306 | D109: 25296 | E109: 49970 | F109: 1760694 | G109: 5690634 | N109: 1 | O109: =表格1[[#This Row],[尚未償還 貸款金額]]-$F$7 -> $6,382,040元 | P109: 99 | Q109: 2005 | R109: 2
A110: 100 | B110: 2005-03-01 | C110: 6431815 | D110: 25491 | E110: 49775 | F110: 1786185 | G110: 5740409 | N110: 1 | O110: =表格1[[#This Row],[尚未償還 貸款金額]]-$F$7 -> $6,356,549元 | P110: 100 | Q110: 2005 | R110: 3
A111: 101 | B111: 2005-04-01 | C111: 6406128 | D111: 25687 | E111: 49579 | F111: 1811872 | G111: 5789988 | N111: 1 | O111: =表格1[[#This Row],[尚未償還 貸款金額]]-$F$7 -> $6,330,862元 | P111: 101 | Q111: 2005 | R111: 4
A112: 102 | B112: 2005-05-01 | C112: 6380243 | D112: 25885 | E112: 49381 | F112: 1837757 | G112: 5839368 | N112: 1 | O112: =表格1[[#This Row],[尚未償還 貸款金額]]-$F$7 -> $6,304,977元 | P112: 102 | Q112: 2005 | R112: 5
A113: 103 | B113: 2005-06-01 | C113: 6354158 | D113: 26085 | E113: 49181 | F113: 1863842 | G113: 5888549 | N113: 1 | O113: =表格1[[#This Row],[尚未償還 貸款金額]]-$F$7 -> $6,278,892元 | P113: 103 | Q113: 2005 | R113: 6
A114: 104 | B114: 2005-07-01 | C114: 6327872 | D114: 26286 | E114: 48980 | F114: 1890128 | G114: 5937529 | N114: 1 | O114: =表格1[[#This Row],[尚未償還 貸款金額]]-$F$7 -> $6,252,606元 | P114: 104 | Q114: 2005 | R114: 7
A115: 105 | B115: 2005-08-01 | C115: 6301383 | D115: 26489 | E115: 48777 | F115: 1916617 | G115: 5986306 | N115: 1 | O115: =表格1[[#This Row],[尚未償還 貸款金額]]-$F$7 -> $6,226,117元 | P115: 105 | Q115: 2005 | R115: 8
A116: 106 | B116: 2005-09-01 | C116: 6274690 | D116: 26693 | E116: 48573 | F116: 1943310 | G116: 6034880 | N116: 1 | O116: =表格1[[#This Row],[尚未償還 貸款金額]]-$F$7 -> $6,199,424元 | P116: 106 | Q116: 2005 | R116: 9
A117: 107 | B117: 2005-10-01 | C117: 6247792 | D117: 26899 | E117: 48367 | F117: 1970208 | G117: 6083247 | N117: 1 | O117: =表格1[[#This Row],[尚未償還 貸款金額]]-$F$7 -> $6,172,526元 | P117: 107 | Q117: 2005 | R117: 10
A118: 108 | B118: 2005-11-01 | C118: 6220686 | D118: 27106 | E118: 48160 | F118: 1997314 | G118: 6131407 | N118: 1 | O118: =表格1[[#This Row],[尚未償還 貸款金額]]-$F$7 -> $6,145,420元 | P118: 108 | Q118: 2005 | R118: 11
A119: 109 | B119: 2005-12-01 | C119: 6193371 | D119: 27315 | E119: 47951 | F119: 2024629 | G119: 6179358 | N119: 1 | O119: =表格1[[#This Row],[尚未償還 貸款金額]]-$F$7 -> $6,118,105元 | P119: 109 | Q119: 2005 | R119: 12
A120: 110 | B120: 2006-01-01 | C120: 6165846 | D120: 27525 | E120: 47741 | F120: 2052154 | G120: 6227099 | N120: 1 | O120: =表格1[[#This Row],[尚未償還 貸款金額]]-$F$7 -> $6,090,580元 | P120: 110 | Q120: 2006 | R120: 1
A121: 111 | B121: 2006-02-01 | C121: 6138108 | D121: 27738 | E121: 47528 | F121: 2079892 | G121: 6274627 | N121: 1 | O121: =表格1[[#This Row],[尚未償還 貸款金額]]-$F$7 -> $6,062,842元 | P121: 111 | Q121: 2006 | R121: 2
A122: 112 | B122: 2006-03-01 | C122: 6110157 | D122: 27951 | E122: 47315 | F122: 2107843 | G122: 6321942 | N122: 1 | O122: =表格1[[#This Row],[尚未償還 貸款金額]]-$F$7 -> $6,034,891元 | P122: 112 | Q122: 2006 | R122: 3
A123: 113 | B123: 2006-04-01 | C123: 6081990 | D123: 28167 | E123: 47099 | F123: 2136010 | G123: 6369041 | N123: 1 | O123: =表格1[[#This Row],[尚未償還 貸款金額]]-$F$7 -> $6,006,724元 | P123: 113 | Q123: 2006 | R123: 4
A124: 114 | B124: 2006-05-01 | C124: 6053606 | D124: 28384 | E124: 46882 | F124: 2164394 | G124: 6415923 | N124: 1 | O124: =表格1[[#This Row],[尚未償還 貸款金額]]-$F$7 -> $5,978,340元 | P124: 114 | Q124: 2006 | R124: 5
A125: 115 | B125: 2006-06-01 | C125: 6025003 | D125: 28603 | E125: 46663 | F125: 2192997 | G125: 6462586 | N125: 1 | O125: =表格1[[#This Row],[尚未償還 貸款金額]]-$F$7 -> $5,949,738元 | P125: 115 | Q125: 2006 | R125: 6
A126: 116 | B126: 2006-07-01 | C126: 5996180 | D126: 28823 | E126: 46443 | F126: 2221820 | G126: 6509029 | N126: 1 | O126: =表格1[[#This Row],[尚未償還 貸款金額]]-$F$7 -> $5,920,914元 | P126: 116 | Q126: 2006 | R126: 7
A127: 117 | B127: 2006-08-01 | C127: 5967135 | D127: 29045 | E127: 46221 | F127: 2250865 | G127: 6555249 | N127: 1 | O127: =表格1[[#This Row],[尚未償還 貸款金額]]-$F$7 -> $5,891,869元 | P127: 117 | Q127: 2006 | R127: 8
A128: 118 | B128: 2006-09-01 | C128: 5937866 | D128: 29269 | E128: 45997 | F128: 2280134 | G128: 6601246 | N128: 1 | O128: =表格1[[#This Row],[尚未償還 貸款金額]]-$F$7 -> $5,862,600元 | P128: 118 | Q128: 2006 | R128: 9
A129: 119 | B129: 2006-10-01 | C129: 5908371 | D129: 29495 | E129: 45771 | F129: 2309629 | G129: 6647017 | N129: 1 | O129: =表格1[[#This Row],[尚未償還 貸款金額]]-$F$7 -> $5,833,105元 | P129: 119 | Q129: 2006 | R129: 10
A130: 120 | B130: 2006-11-01 | C130: 5878648 | D130: 29722 | E130: 45544 | F130: 2339352 | G130: 6692561 | N130: 1 | O130: =表格1[[#This Row],[尚未償還 貸款金額]]-$F$7 -> $5,803,383元 | P130: 120 | Q130: 2006 | R130: 11
A131: 121 | B131: 2006-12-01 | C131: 5848697 | D131: 29951 | E131: 45315 | F131: 2369303 | G131: 6737875 | N131: 1 | O131: =表格1[[#This Row],[尚未償還 貸款金額]]-$F$7 -> $5,773,431元 | P131: 121 | Q131: 2006 | R131: 12
A132: 122 | B132: 2007-01-01 | C132: 5818515 | D132: 30182 | E132: 45084 | F132: 2399485 | G132: 6782959 | N132: 1 | O132: =表格1[[#This Row],[尚未償還 貸款金額]]-$F$7 -> $5,743,249元 | P132: 122 | Q132: 2007 | R132: 1
A133: 123 | B133: 2007-02-01 | C133: 5788100 | D133: 30415 | E133: 44851 | F133: 2429900 | G133: 6827810 | N133: 1 | O133: =表格1[[#This Row],[尚未償還 貸款金額]]-$F$7 -> $5,712,834元 | P133: 123 | Q133: 2007 | R133: 2
A134: 124 | B134: 2007-03-01 | C134: 5757451 | D134: 30649 | E134: 44617 | F134: 2460549 | G134: 6872427 | N134: 1 | O134: =表格1[[#This Row],[尚未償還 貸款金額]]-$F$7 -> $5,682,185元 | P134: 124 | Q134: 2007 | R134: 3
A135: 125 | B135: 2007-04-01 | C135: 5726565 | D135: 30886 | E135: 44380 | F135: 2491435 | G135: 6916807 | N135: 1 | O135: =表格1[[#This Row],[尚未償還 貸款金額]]-$F$7 -> $5,651,299元 | P135: 125 | Q135: 2007 | R135: 4
A136: 126 | B136: 2007-05-01 | C136: 5695441 | D136: 31124 | E136: 44142 | F136: 2522559 | G136: 6960949 | N136: 1 | O136: =表格1[[#This Row],[尚未償還 貸款金額]]-$F$7 -> $5,620,175元 | P136: 126 | Q136: 2007 | R136: 5
A137: 127 | B137: 2007-06-01 | C137: 5664078 | D137: 31364 | E137: 43902 | F137: 2553922 | G137: 7004852 | N137: 1 | O137: =表格1[[#This Row],[尚未償還 貸款金額]]-$F$7 -> $5,588,812元 | P137: 127 | Q137: 2007 | R137: 6
A138: 128 | B138: 2007-07-01 | C138: 5632472 | D138: 31605 | E138: 43661 | F138: 2585528 | G138: 7048512 | N138: 1 | O138: =表格1[[#This Row],[尚未償還 貸款金額]]-$F$7 -> $5,557,207元 | P138: 128 | Q138: 2007 | R138: 7
A139: 129 | B139: =IF(A139="","",IF(R139="","錯誤的日期",DATE(Q139,R139,1))) -> 2007-08-01 | C139: 5600624 | D139: =IF(OR(A139="",C138=""),"",IF(C138<$F$7,C138,$F$7-E139+IF(MOD(A139,$P$3)=0,$S$3,0))) -> 31849 | E139: 43417 | F139: 2617376 | G139: 7091929 | N139: 1 | O139: =表格1[[#This Row],[尚未償還 貸款金額]]-$F$7 -> $5,525,358元 | P139: 129 | Q139: 2007 | R139: 8
A140: =IF(AND(A139<$F$4*12,A139<>""),A139+1,"") -> 130 | B140: 2007-09-01 | C140: 5568529 | D140: 32094 | E140: =IF(OR(A140="",C139=""),"",C139*$D$4/12) -> 43171 | F140: =IF(OR(A140="",C139=""),"",F139+D140) -> 2649471 | G140: =IF(OR(A140="",C139=""),"",G139+E140) -> 7135101 | N140: =IF(O140<0,"A",1) -> 1 | O140: =表格1[[#This Row],[尚未償還 貸款金額]]-$F$7 -> $5,493,263元 | P140: 130 | Q140: =IF(R139=12,Q139+1,Q139) -> 2007 | R140: =IF(R139=12,1,R139+1) -> 9
A141: 131 | B141: 2007-10-01 | C141: =IF(A141="","",IF((C140-D141)<=0,"",C140-D141)) -> 5536187 | D141: 32342 | E141: 42924 | F141: 2681813 | G141: 7178025 | N141: 1 | O141: =表格1[[#This Row],[尚未償還 貸款金額]]-$F$7 -> $5,460,921元 | P141: 131 | Q141: 2007 | R141: 10
A142: 132 | B142: 2007-11-01 | C142: 5503596 | D142: 32591 | E142: 42675 | F142: 2714404 | G142: 7220700 | N142: 1 | O142: =表格1[[#This Row],[尚未償還 貸款金額]]-$F$7 -> $5,428,330元 | P142: 132 | Q142: 2007 | R142: 11
A143: 133 | B143: 2007-12-01 | C143: 5470754 | D143: 32842 | E143: 42424 | F143: 2747246 | G143: 7263123 | N143: 1 | O143: =表格1[[#This Row],[尚未償還 貸款金額]]-$F$7 -> $5,395,488元 | P143: 133 | Q143: 2007 | R143: 12
A144: 134 | B144: 2008-01-01 | C144: 5437658 | D144: 33096 | E144: 42170 | F144: 2780342 | G144: 7305294 | N144: 1 | O144: =表格1[[#This Row],[尚未償還 貸款金額]]-$F$7 -> $5,362,392元 | P144: 134 | Q144: 2008 | R144: 1
A145: 135 | B145: 2008-02-01 | C145: 5404307 | D145: 33351 | E145: 41915 | F145: 2813693 | G145: 7347209 | N145: 1 | O145: =表格1[[#This Row],[尚未償還 貸款金額]]-$F$7 -> $5,329,042元 | P145: 135 | Q145: 2008 | R145: 2
A146: 136 | B146: 2008-03-01 | C146: 5370700 | D146: 33608 | E146: 41658 | F146: 2847300 | G146: 7388867 | N146: 1 | O146: =表格1[[#This Row],[尚未償還 貸款金額]]-$F$7 -> $5,295,434元 | P146: 136 | Q146: 2008 | R146: 3
A147: 137 | B147: 2008-04-01 | C147: 5336833 | D147: 33867 | E147: 41399 | F147: 2881167 | G147: 7430266 | N147: 1 | O147: =表格1[[#This Row],[尚未償還 貸款金額]]-$F$7 -> $5,261,567元 | P147: 137 | Q147: 2008 | R147: 4
A148: 138 | B148: 2008-05-01 | C148: 5302705 | D148: 34128 | E148: 41138 | F148: 2915295 | G148: 7471404 | N148: 1 | O148: =表格1[[#This Row],[尚未償還 貸款金額]]-$F$7 -> $5,227,439元 | P148: 138 | Q148: 2008 | R148: 5
A149: 139 | B149: 2008-06-01 | C149: 5268314 | D149: 34391 | E149: 40875 | F149: 2949686 | G149: 7512279 | N149: 1 | O149: =表格1[[#This Row],[尚未償還 貸款金額]]-$F$7 -> $5,193,048元 | P149: 139 | Q149: 2008 | R149: 6
A150: 140 | B150: 2008-07-01 | C150: 5233658 | D150: 34656 | E150: 40610 | F150: 2984342 | G150: 7552889 | N150: 1 | O150: =表格1[[#This Row],[尚未償還 貸款金額]]-$F$7 -> $5,158,392元 | P150: 140 | Q150: 2008 | R150: 7
A151: 141 | B151: 2008-08-01 | C151: 5198735 | D151: 34923 | E151: 40343 | F151: 3019265 | G151: 7593232 | N151: 1 | O151: =表格1[[#This Row],[尚未償還 貸款金額]]-$F$7 -> $5,123,469元 | P151: 141 | Q151: 2008 | R151: 8
A152: 142 | B152: 2008-09-01 | C152: 5163543 | D152: 35192 | E152: 40074 | F152: 3054457 | G152: 7633306 | N152: 1 | O152: =表格1[[#This Row],[尚未償還 貸款金額]]-$F$7 -> $5,088,277元 | P152: 142 | Q152: 2008 | R152: 9
A153: 143 | B153: 2008-10-01 | C153: 5128079 | D153: 35464 | E153: 39802 | F153: 3089921 | G153: 7673108 | N153: 1 | O153: =表格1[[#This Row],[尚未償還 貸款金額]]-$F$7 -> $5,052,813元 | P153: 143 | Q153: 2008 | R153: 10
A154: 144 | B154: 2008-11-01 | C154: 5092342 | D154: 35737 | E154: 39529 | F154: 3125658 | G154: 7712637 | N154: 1 | O154: =表格1[[#This Row],[尚未償還 貸款金額]]-$F$7 -> $5,017,076元 | P154: 144 | Q154: 2008 | R154: 11
A155: 145 | B155: 2008-12-01 | C155: 5056330 | D155: 36012 | E155: 39253 | F155: 3161670 | G155: 7751890 | N155: 1 | O155: =表格1[[#This Row],[尚未償還 貸款金額]]-$F$7 -> $4,981,064元 | P155: 145 | Q155: 2008 | R155: 12
A156: 146 | B156: 2009-01-01 | C156: 5020040 | D156: 36290 | E156: 38976 | F156: 3197960 | G156: 7790866 | N156: 1 | O156: =表格1[[#This Row],[尚未償還 貸款金額]]-$F$7 -> $4,944,774元 | P156: 146 | Q156: 2009 | R156: 1
A157: 147 | B157: 2009-02-01 | C157: 4983470 | D157: 36570 | E157: 38696 | F157: 3234530 | G157: 7829562 | N157: 1 | O157: =表格1[[#This Row],[尚未償還 貸款金額]]-$F$7 -> $4,908,204元 | P157: 147 | Q157: 2009 | R157: 2
A158: 148 | B158: 2009-03-01 | C158: 4946618 | D158: 36852 | E158: 38414 | F158: 3271382 | G158: 7867977 | N158: 1 | O158: =表格1[[#This Row],[尚未償還 貸款金額]]-$F$7 -> $4,871,352元 | P158: 148 | Q158: 2009 | R158: 3
A159: 149 | B159: 2009-04-01 | C159: 4909482 | D159: 37136 | E159: 38130 | F159: 3308518 | G159: 7906107 | N159: 1 | O159: =表格1[[#This Row],[尚未償還 貸款金額]]-$F$7 -> $4,834,216元 | P159: 149 | Q159: 2009 | R159: 4
A160: 150 | B160: 2009-05-01 | C160: 4872060 | D160: 37422 | E160: 37844 | F160: 3345940 | G160: 7943951 | N160: 1 | O160: =表格1[[#This Row],[尚未償還 貸款金額]]-$F$7 -> $4,796,794元 | P160: 150 | Q160: 2009 | R160: 5
A161: 151 | B161: 2009-06-01 | C161: 4834350 | D161: 37710 | E161: 37555 | F161: 3383650 | G161: 7981506 | N161: 1 | O161: =表格1[[#This Row],[尚未償還 貸款金額]]-$F$7 -> $4,759,084元 | P161: 151 | Q161: 2009 | R161: 6
A162: 152 | B162: 2009-07-01 | C162: 4796349 | D162: 38001 | E162: 37265 | F162: 3421651 | G162: 8018771 | N162: 1 | O162: =表格1[[#This Row],[尚未償還 貸款金額]]-$F$7 -> $4,721,083元 | P162: 152 | Q162: 2009 | R162: 7
A163: 153 | B163: 2009-08-01 | C163: 4758055 | D163: 38294 | E163: 36972 | F163: 3459945 | G163: 8055743 | N163: 1 | O163: =表格1[[#This Row],[尚未償還 貸款金額]]-$F$7 -> $4,682,789元 | P163: 153 | Q163: 2009 | R163: 8
A164: 154 | B164: 2009-09-01 | C164: 4719465 | D164: 38589 | E164: 36677 | F164: 3498535 | G164: 8092419 | N164: 1 | O164: =表格1[[#This Row],[尚未償還 貸款金額]]-$F$7 -> $4,644,199元 | P164: 154 | Q164: 2009 | R164: 9
A165: 155 | B165: 2009-10-01 | C165: 4680579 | D165: 38887 | E165: 36379 | F165: 3537421 | G165: 8128799 | N165: 1 | O165: =表格1[[#This Row],[尚未償還 貸款金額]]-$F$7 -> $4,605,313元 | P165: 155 | Q165: 2009 | R165: 10
A166: 156 | B166: 2009-11-01 | C166: 4641392 | D166: 39186 | E166: 36079 | F166: 3576608 | G166: 8164878 | N166: 1 | O166: =表格1[[#This Row],[尚未償還 貸款金額]]-$F$7 -> $4,566,126元 | P166: 156 | Q166: 2009 | R166: 11
A167: 157 | B167: 2009-12-01 | C167: 4601904 | D167: 39489 | E167: 35777 | F167: 3616096 | G167: 8200656 | N167: 1 | O167: =表格1[[#This Row],[尚未償還 貸款金額]]-$F$7 -> $4,526,638元 | P167: 157 | Q167: 2009 | R167: 12
A168: 158 | B168: 2010-01-01 | C168: 4562111 | D168: 39793 | E168: 35473 | F168: 3655889 | G168: 8236129 | N168: 1 | O168: =表格1[[#This Row],[尚未償還 貸款金額]]-$F$7 -> $4,486,845元 | P168: 158 | Q168: 2010 | R168: 1
A169: 159 | B169: 2010-02-01 | C169: 4522011 | D169: 40100 | E169: 35166 | F169: 3695989 | G169: 8271295 | N169: 1 | O169: =表格1[[#This Row],[尚未償還 貸款金額]]-$F$7 -> $4,446,745元 | P169: 159 | Q169: 2010 | R169: 2
A170: 160 | B170: 2010-03-01 | C170: 4481602 | D170: 40409 | E170: 34857 | F170: 3736398 | G170: 8306152 | N170: 1 | O170: =表格1[[#This Row],[尚未償還 貸款金額]]-$F$7 -> $4,406,336元 | P170: 160 | Q170: 2010 | R170: 3
A171: 161 | B171: 2010-04-01 | C171: 4440882 | D171: 40720 | E171: 34546 | F171: 3777118 | G171: 8340698 | N171: 1 | O171: =表格1[[#This Row],[尚未償還 貸款金額]]-$F$7 -> $4,365,616元 | P171: 161 | Q171: 2010 | R171: 4
A172: 162 | B172: 2010-05-01 | C172: 4399848 | D172: 41034 | E172: 34232 | F172: 3818152 | G172: 8374929 | N172: 1 | O172: =表格1[[#This Row],[尚未償還 貸款金額]]-$F$7 -> $4,324,582元 | P172: 162 | Q172: 2010 | R172: 5
A173: 163 | B173: 2010-06-01 | C173: 4358497 | D173: 41350 | E173: 33915 | F173: 3859503 | G173: 8408845 | N173: 1 | O173: =表格1[[#This Row],[尚未償還 貸款金額]]-$F$7 -> $4,283,231元 | P173: 163 | Q173: 2010 | R173: 6
A174: 164 | B174: 2010-07-01 | C174: 4316828 | D174: 41669 | E174: 33597 | F174: 3901172 | G174: 8442442 | N174: 1 | O174: =表格1[[#This Row],[尚未償還 貸款金額]]-$F$7 -> $4,241,562元 | P174: 164 | Q174: 2010 | R174: 7
A175: 165 | B175: 2010-08-01 | C175: 4274838 | D175: 41990 | E175: 33276 | F175: 3943162 | G175: 8475717 | N175: 1 | O175: =表格1[[#This Row],[尚未償還 貸款金額]]-$F$7 -> $4,199,572元 | P175: 165 | Q175: 2010 | R175: 8
A176: 166 | B176: 2010-09-01 | C176: 4232524 | D176: 42314 | E176: 32952 | F176: 3985476 | G176: 8508669 | N176: 1 | O176: =表格1[[#This Row],[尚未償還 貸款金額]]-$F$7 -> $4,157,258元 | P176: 166 | Q176: 2010 | R176: 9
A177: 167 | B177: 2010-10-01 | C177: 4189883 | D177: 42640 | E177: 32626 | F177: 4028117 | G177: 8541295 | N177: 1 | O177: =表格1[[#This Row],[尚未償還 貸款金額]]-$F$7 -> $4,114,618元 | P177: 167 | Q177: 2010 | R177: 10
A178: 168 | B178: 2010-11-01 | C178: 4146915 | D178: 42969 | E178: 32297 | F178: 4071085 | G178: 8573592 | N178: 1 | O178: =表格1[[#This Row],[尚未償還 貸款金額]]-$F$7 -> $4,071,649元 | P178: 168 | Q178: 2010 | R178: 11
A179: 169 | B179: 2010-12-01 | C179: 4103614 | D179: 43300 | E179: 31966 | F179: 4114386 | G179: 8605558 | N179: 1 | O179: =表格1[[#This Row],[尚未償還 貸款金額]]-$F$7 -> $4,028,348元 | P179: 169 | Q179: 2010 | R179: 12
A180: 170 | B180: 2011-01-01 | C180: 4059981 | D180: 43634 | E180: 31632 | F180: 4158019 | G180: 8637190 | N180: 1 | O180: =表格1[[#This Row],[尚未償還 貸款金額]]-$F$7 -> $3,984,715元 | P180: 170 | Q180: 2011 | R180: 1
A181: 171 | B181: 2011-02-01 | C181: 4016010 | D181: 43970 | E181: 31296 | F181: 4201990 | G181: 8668485 | N181: 1 | O181: =表格1[[#This Row],[尚未償還 貸款金額]]-$F$7 -> $3,940,744元 | P181: 171 | Q181: 2011 | R181: 2
A182: 172 | B182: 2011-03-01 | C182: 3971701 | D182: 44309 | E182: 30957 | F182: 4246299 | G182: 8699442 | N182: 1 | O182: =表格1[[#This Row],[尚未償還 貸款金額]]-$F$7 -> $3,896,435元 | P182: 172 | Q182: 2011 | R182: 3
A183: 173 | B183: 2011-04-01 | C183: 3927050 | D183: 44651 | E183: 30615 | F183: 4290950 | G183: 8730057 | N183: 1 | O183: =表格1[[#This Row],[尚未償還 貸款金額]]-$F$7 -> $3,851,784元 | P183: 173 | Q183: 2011 | R183: 4
A184: 174 | B184: 2011-05-01 | C184: 3882055 | D184: 44995 | E184: 30271 | F184: 4335945 | G184: 8760328 | N184: 1 | O184: =表格1[[#This Row],[尚未償還 貸款金額]]-$F$7 -> $3,806,789元 | P184: 174 | Q184: 2011 | R184: 5
A185: 175 | B185: 2011-06-01 | C185: 3836714 | D185: 45342 | E185: 29924 | F185: 4381286 | G185: 8790253 | N185: 1 | O185: =表格1[[#This Row],[尚未償還 貸款金額]]-$F$7 -> $3,761,448元 | P185: 175 | Q185: 2011 | R185: 6
A186: 176 | B186: 2011-07-01 | C186: 3791022 | D186: 45691 | E186: 29575 | F186: 4426978 | G186: 8819827 | N186: 1 | O186: =表格1[[#This Row],[尚未償還 貸款金額]]-$F$7 -> $3,715,756元 | P186: 176 | Q186: 2011 | R186: 7
A187: 177 | B187: 2011-08-01 | C187: 3744979 | D187: 46043 | E187: 29222 | F187: 4473021 | G187: 8849050 | N187: 1 | O187: =表格1[[#This Row],[尚未償還 貸款金額]]-$F$7 -> $3,669,713元 | P187: 177 | Q187: 2011 | R187: 8
A188: 178 | B188: 2011-09-01 | C188: 3698581 | D188: 46398 | E188: 28868 | F188: 4519419 | G188: 8877917 | N188: 1 | O188: =表格1[[#This Row],[尚未償還 貸款金額]]-$F$7 -> $3,623,315元 | P188: 178 | Q188: 2011 | R188: 9
A189: 179 | B189: 2011-10-01 | C189: 3651824 | D189: 46756 | E189: 28510 | F189: 4566176 | G189: 8906427 | N189: 1 | O189: =表格1[[#This Row],[尚未償還 貸款金額]]-$F$7 -> $3,576,559元 | P189: 179 | Q189: 2011 | R189: 10
A190: 180 | B190: 2011-11-01 | C190: 3604708 | D190: 47116 | E190: 28149 | F190: 4613292 | G190: 8934577 | N190: 1 | O190: =表格1[[#This Row],[尚未償還 貸款金額]]-$F$7 -> $3,529,442元 | P190: 180 | Q190: 2011 | R190: 11
A191: 181 | B191: 2011-12-01 | C191: 3557228 | D191: 47480 | E191: 27786 | F191: 4660772 | G191: 8962363 | N191: 1 | O191: =表格1[[#This Row],[尚未償還 貸款金額]]-$F$7 -> $3,481,962元 | P191: 181 | Q191: 2011 | R191: 12
A192: 182 | B192: 2012-01-01 | C192: 3509383 | D192: 47846 | E192: 27420 | F192: 4708617 | G192: 8989783 | N192: 1 | O192: =表格1[[#This Row],[尚未償還 貸款金額]]-$F$7 -> $3,434,117元 | P192: 182 | Q192: 2012 | R192: 1
A193: 183 | B193: 2012-02-01 | C193: 3461168 | D193: 48214 | E193: 27051 | F193: 4756832 | G193: 9016835 | N193: 1 | O193: =表格1[[#This Row],[尚未償還 貸款金額]]-$F$7 -> $3,385,902元 | P193: 183 | Q193: 2012 | R193: 2
A194: 184 | B194: 2012-03-01 | C194: 3412582 | D194: 48586 | E194: 26680 | F194: 4805418 | G194: 9043514 | N194: 1 | O194: =表格1[[#This Row],[尚未償還 貸款金額]]-$F$7 -> $3,337,316元 | P194: 184 | Q194: 2012 | R194: 3
A195: 185 | B195: 2012-04-01 | C195: 3363622 | D195: 48961 | E195: 26305 | F195: 4854378 | G195: 9069820 | N195: 1 | O195: =表格1[[#This Row],[尚未償還 貸款金額]]-$F$7 -> $3,288,356元 | P195: 185 | Q195: 2012 | R195: 4
A196: 186 | B196: 2012-05-01 | C196: 3314284 | D196: 49338 | E196: 25928 | F196: 4903716 | G196: 9095748 | N196: 1 | O196: =表格1[[#This Row],[尚未償還 貸款金額]]-$F$7 -> $3,239,018元 | P196: 186 | Q196: 2012 | R196: 5
A197: 187 | B197: 2012-06-01 | C197: 3264565 | D197: 49718 | E197: 25548 | F197: 4953435 | G197: 9121295 | N197: 1 | O197: =表格1[[#This Row],[尚未償還 貸款金額]]-$F$7 -> $3,189,299元 | P197: 187 | Q197: 2012 | R197: 6
A198: 188 | B198: 2012-07-01 | C198: 3214464 | D198: 50102 | E198: 25164 | F198: 5003536 | G198: 9146460 | N198: 1 | O198: =表格1[[#This Row],[尚未償還 貸款金額]]-$F$7 -> $3,139,198元 | P198: 188 | Q198: 2012 | R198: 7
A199: 189 | B199: 2012-08-01 | C199: 3163976 | D199: 50488 | E199: 24778 | F199: 5054024 | G199: 9171238 | N199: 1 | O199: =表格1[[#This Row],[尚未償還 貸款金額]]-$F$7 -> $3,088,710元 | P199: 189 | Q199: 2012 | R199: 8
A200: 190 | B200: 2012-09-01 | C200: 3113099 | D200: 50877 | E200: 24389 | F200: 5104901 | G200: 9195627 | N200: 1 | O200: =表格1[[#This Row],[尚未償還 貸款金額]]-$F$7 -> $3,037,833元 | P200: 190 | Q200: 2012 | R200: 9
A201: 191 | B201: 2012-10-01 | C201: 3061830 | D201: 51269 | E201: 23997 | F201: 5156170 | G201: 9219624 | N201: 1 | O201: =表格1[[#This Row],[尚未償還 貸款金額]]-$F$7 -> $2,986,564元 | P201: 191 | Q201: 2012 | R201: 10
... 658 more rows
